Cogmind - Beta 13 @@@ ROGUE MODE // 2024.05.29 @ 11:35:10 Player: GFYguy Result: Destroyed by BT-FSX(R) with Subdweller Laser Performance ------------- Evolutions (0) 0 Regions Visited (3) 600 Robots Destroyed (9) 45 Value Destroyed (147) 147 Prototype IDs (0) 0 Alien Tech Used (0) 0 Bonus (60) 60 TOTAL SCORE: 852 Bonus ------- Follower Combat Kills 60 Cogmind --------- Core Integrity 0/250 Matter 273/300 Energy 100/100 System Corruption 8% Temperature Cool (6) Movement Core (100) Ox1 Location -10/Subcaves Parts ------- > --- POWER (1) -------- (None) > --- PROPULSION (2) --- (None) > --- UTILITY (2) ------ Small Storage Unit Targeting Computer > --- WEAPON (2) ------- (None) > --- INVENTORY (8) ---- Light Ion Engine Improved Heat Sink ECM Suite Propulsion Shielding Light Armor Plating Riot Gun Light Assault Rifle Battle Rifle Peak State ------------ > --- POWER ------------ Light Ion Engine > --- PROPULSION ------- Wheel Wheel > --- UTILITY ---------- Small Storage Unit Light Armor Plating > --- WEAPON ----------- Assault Rifle Assault Rifle > --- INVENTORY -------- Light Ion Engine Flight Unit Flight Unit Flight Unit Flight Unit Improved Heat Sink ECM Suite Light Assault Rifle [Rating: 8] Favorites ----------- Power Light Ion Engine Engine Light Ion Engine Propulsion Wheel Wheel Wheel Flight Unit Flight Unit Utility Small Storage Unit Storage Small Storage Unit Processor Targeting Computer Protection Light Armor Plating Weapon Assault Rifle Energy Gun Riot Gun Ballistic Gun Assault Rifle Build | -11 -10 -10 -10 ------- Run | Yrd Mat Min Sub Slots Evolved . | . . . . Power . | . . . . Propulsion . | . . . . Utility . | . . . . Weapon . | . . . . Parts Attached 18 | 5 2 7 4 Power 1 | 1 . . . Engine 1 | 1 . . . Core . | . . . . Reactor . | . . . . Propulsion 6 | 1 1 3 1 Treads . | . . . . Leg . | . . . . Wheel 2 | 1 1 . . Hover . | . . . . Flight 4 | . . 3 1 Utility 4 | 1 1 2 . Device . | . . . . Storage 1 | 1 . . . Processor 2 | . . 2 . Hackware . | . . . . Protection 1 | . 1 . . Artifact . | . . . . Weapon 7 | 2 . 2 3 Energy Gun 2 | . . . 2 Energy Cannon . | . . . . Ballistic Gun 5 | 2 . 2 1 Ballistic Cannon . | . . . . Launcher . | . . . . Special Weapon . | . . . . Impact Weapon . | . . . . Slashing Weapon . | . . . . Piercing Weapon . | . . . . Special Melee Weapon . | . . . . Unidentified Prototypes . | . . . . Parts Lost 7 | . . 3 4 Power 1 | . . . 1 Propulsion 5 | . . 2 3 Utility 1 | . . 1 . Weapon . | . . . . Highest Loss Streak 4 | . . 3 4 To Critical Strikes . | . . . . Average Slot Usage (%) 72 | . 93 88 37 Engine 10 | . 14 14 2 Wheel 12 | . 28 16 . Flight 8 | . . 11 5 Storage 14 | . 14 14 14 Processor 7 | . . 5 14 Protection 5 | . 8 8 . Ballistic Gun 12 | . 28 17 . Naked Turns . | . . . . Heaviest Build 15 | 12 15 15 8 Greatest Support 20 | 10 20 20 8 Greatest Overweight (x) 3 | 1 . 3 2 Average Overweight (x) . | . . . . Largest Inventory Capacity 8 | 8 8 8 8 Average Capacity 7 | 6 8 8 8 Most Carried 8 | 5 8 8 8 Average Carried 7 | 2 3 7 7 Final Capacity 8 | 8 8 8 8 Final Carried 8 | 2 8 8 8 Class Distribution -------------------- 100% | Mutant Dominant Class ---------------- Mutant | -10/Materials Mutant | -10/Mines Mutant | -10/Subcaves Resources | -11 -10 -10 -10 ----------- Run | Yrd Mat Min Sub Matter Collected 548 | 229 77 199 43 Remotely . | . . . . Salvage Created 247 | . 107 140 . Parts 21 | . 9 12 . Haulers Intercepted . | . . . . Recyclers Shooed 3 | . 3 . . Parts Field Recycled . | . . . . Retrieved Matter . | . . . . Parts Self-Destructed 5 | . . . 5 Prevented . | . . . . Kills | -11 -10 -10 -10 ------- Run | Yrd Mat Min Sub Combat Hostiles Destroyed 9 | . 3 6 . Guns 9 | . 3 6 . Classes Destroyed 4 | . 2 2 . Recycler 1 | . 1 . . Swarmer 6 | . 3 3 . Grunt 2 | . . 2 . Assembled 1 | . . 1 . Best Kill Streak 4 | . 4 3 . Combat Bots Only 3 | . 3 3 . Max Kills in Single Turn 2 | . 2 1 . Gunslinging 1 | . 1 . . Exploded . | . . . . Melee . | . . . . Uniques/NPCs Destroyed . | . . . . Combat | -11 -10 -10 -10 -------- Run | Yrd Mat Min Sub Hostile Shots Fired 63 | . 9 29 25 Missed 12 | . 2 3 7 Damage Taken 833 | . 57 383 393 Core 260 | . 10 49 201 Absorbed by Shields . | . . . . Core Remaining (%) 100 | 100 . . . Volleys Fired 35 | . 6 24 5 Largest 2 | . 2 2 1 Hottest 50 | . 40 40 50 Shots Fired 64 | . 12 46 6 Gun 64 | . 12 46 6 Cannon . | . . . . Launcher . | . . . . Special . | . . . . Kinetic 62 | . 12 46 4 Thermal . | . . . . Explosive . | . . . . Electromagnetic 2 | . . . 2 Robot Hit Streak 6 | . 3 6 3 Robot Miss Streak 4 | . 1 4 1 Penetration Max . | . . . . Secondary Targets 1 | . 1 . . Max Gunslinging Chain 1 | . 1 . . Shots Hit Robots 34 | . 7 26 1 Core Hits 17 | . 6 11 . Critical Kills . | . . . . Critical Parts Destroyed 1 | . . 1 . Critical Strikes 1 | . . 1 . Destroy 1 | . . 1 . Melee Attacks . | . . . . Impact . | . . . . Slashing . | . . . . Piercing . | . . . . Sneak Attacks . | . . . . Combat Hostiles . | . . . . Follow-up Attacks . | . . . . Damage Inflicted 432 | . 103 329 . Guns 432 | . 103 329 . Cannons . | . . . . Explosions . | . . . . Melee . | . . . . Ramming . | . . . . Kinetic 432 | . 103 329 . Thermal . | . . . . Explosive . | . . . . Electromagnetic . | . . . . Impact . | . . . . Slashing . | . . . . Piercing . | . . . . Highest Corruption 8 | . . 8 8 Average Corruption 7 | . . 7 8 Corruption Purged . | . . . . Corruption Blocked . | . . . . Effects 28 | . . 12 16 Message Errors 9 | . . 5 4 Matter Fused 7 | . . 3 4 Heat Flow Errors 6 | . . 1 5 Energy Discharges 1 | . . 1 . Data Loss (minor) 1 | . . . 1 Data Loss (major) 1 | . . . 1 Misfires 1 | . . . 1 Weapon Failures 2 | . . 2 . Overload Shots . | . . . . Overflow Damage . | . . . . Projectiles . | . . . . Explosions . | . . . . Melee . | . . . . Knockbacks . | . . . . Impact . | . . . . Kinetic . | . . . . Secondary . | . . . . Self-Inflicted Damage . | . . . . Shots . | . . . . Rammed . | . . . . Targets Rammed . | . . . . Kicked . | . . . . Crushed . | . . . . Highest Temperature 190 | . 9 123 190 Average Temperature 42 | . 5 17 80 Received Heat Transfer 186 | . . 156 30 Siege Activations . | . . . . Robots Corrupted . | . . . . Combat Hostiles . | . . . . Parts Fried . | . . . . Impact Corruptions . | . . . . Robots Melted . | . . . . Combat Hostiles . | . . . . Parts Melted . | . . . . Heat Transferred . | . . . . Parts Sabotaged . | . . . . Parts Stolen . | . . . . Parts Stripped . | . . . . Power Chain Reactions . | . . . . Alert | -11 -10 -10 -10 ------- Run | Yrd Mat Min Sub Peak Influence 147 | . 90 147 . Initial 34 | . . 34 . Average 37 | . 28 41 . Maximum Alert Level . | . . . . Low Security (%) 100 | 100 100 100 . Level 1 . | . . . . Level 2 . | . . . . Level 3 . | . . . . Level 4 . | . . . . Level 5 . | . . . . High Security . | . . . . Max Security . | . . . . Squads Dispatched . | . . . . Investigation . | . . . . Extermination . | . . . . Reinforcement . | . . . . Assault . | . . . . Garrison . | . . . . Intercept . | . . . . Searches Triggered . | . . . . Construction Impeded . | . . . . Haulers Reinforced . | . . . . Active Scanning Responses . | . . . . Cargo Convoy Interrupts . | . . . . Stealth | -11 -10 -10 -10 --------- Run | Yrd Mat Min Sub Distress Signals . | . . . . Communications Jammed . | . . . . Distress Signals . | . . . . Times Spotted 22 | . 3 12 7 Peak Tracking Total 5 | . 3 3 5 Tactical Retreats 4 | . . 2 2 Traps | -11 -10 -10 -10 ------- Run | Yrd Mat Min Sub Traps Triggered . | . . . . Indirectly . | . . . . Trap Hack Attempts . | . . . . Triggered . | . . . . Disarmed . | . . . . Reprogrammed . | . . . . Reused . | . . . . Traps Extracted . | . . . . Installed . | . . . . Triggered 1 | . . . 1 Machines | -11 -10 -10 -10 ---------- Run | Yrd Mat Min Sub Machines Disabled . | . . . . Max in Single Turn . | . . . . Machines Repaired . | . . . . Machines Dismantled . | . . . . Machines Sabotaged . | . . . . Overloaded Fab Kills . | . . . . Hacking | -11 -10 -10 -10 --------- Run | Yrd Mat Min Sub Machines Accessed . | . . . . Terminals . | . . . . Fabricators . | . . . . Repair Stations . | . . . . Recycling Units . | . . . . Scanalyzers . | . . . . Garrison Access . | . . . . Total Hacks . | . . . . Successful . | . . . . Failed . | . . . . Catastrophic . | . . . . Database Lockouts . | . . . . Manual . | . . . . Terminals . | . . . . Fabricators . | . . . . Repair Stations . | . . . . Recycling Units . | . . . . Scanalyzers . | . . . . Garrison Access . | . . . . Terminal Hacks . | . . . . Fabricator Hacks . | . . . . Repair Station Hacks . | . . . . Recycling Unit Hacks . | . . . . Scanalyzer . | . . . . Garrison Access Hacks . | . . . . Unauthorized Hacks . | . . . . Terminals . | . . . . Fabricators . | . . . . Repair Stations . | . . . . Recycling Units . | . . . . Scanalyzers . | . . . . Garrison Access . | . . . . Data Cores Recovered . | . . . . Used . | . . . . Hacking Detections . | . . . . Full Trace Events . | . . . . Feedback Events . | . . . . Feedback Blocked . | . . . . Robot Schematics Acquired . | . . . . Robots Built . | . . . . Authchips . | . . . . Time . | . . . . Total Robot Build Rating . | . . . . Part Schematics Acquired . | . . . . Parts Built . | . . . . Authchips . | . . . . Time . | . . . . Total Part Build Rating . | . . . . Parts Repaired . | . . . . Time . | . . . . Parts Recycled . | . . . . Recycled Matter . | . . . . Retrieved Matter . | . . . . Retrieved Components . | . . . . Parts Scanalyzed . | . . . . Part Schematics Acquired . | . . . . Parts Damaged . | . . . . Bothacking | -11 -10 -10 -10 ------------ Run | Yrd Mat Min Sub Used RIF Installer . | . . . . Robots Hacked . | . . . . Non-combat . | . . . . Combat . | . . . . Robot Hacks Applied . | . . . . Relay Couplers Released . | . . . . Fabnet Peak Effective % . | . . . . Robots Rewired . | . . . . Allies Hacked . | . . . . Hacks Repelled . | . . . . Allies | -11 -10 -10 -10 -------- Run | Yrd Mat Min Sub Total Allies 3 | . . 3 . Largest Group 3 | . . 3 . Highest-Rated Group 40 | . . 40 . Highest-Rated Ally 16 | . . 16 . Total Orders . | . . . . Ally Attacks 23 | . . 23 . Total Damage 226 | . . 226 . Kills 4 | . . 4 . Allies Corrupted . | . . . . Allies Melted . | . . . . Intel | -11 -10 -10 -10 ------- Run | Yrd Mat Min Sub Robot Analysis Total . | . . . . Derelict Logs Recovered 1 | . . . 1 Drone Launches . | . . . . Drone Recoveries . | . . . . Exploration | -11 -10 -10 -10 ------------- Run | Yrd Mat Min Sub Turns Passed 1551 | 76 135 867 473 Spaces Moved 1235 | 69 130 466 570 Core 359 | 14 . 1 344 Treads . | . . . . Legs . | . . . . Wheels 572 | 55 130 387 . Hover . | . . . . Flight 304 | . . 78 226 Fastest Speed 37 | 50 80 37 37 Average Speed 75 | 82 80 73 76 Slowest Speed 200 | 95 80 200 150 Overloaded Moves . | . . . . Propulsion Burnouts . | . . . . Robots Hopped . | . . . . Cave-ins Triggered . | . . . . Exploration Rate (%) 40 | 4 31 77 50 Regions Visited 3 Branch Regions 2 Pre-discovered Areas . | . . . . Known Exits Taken . | . . . . Unknown Exits Taken 3 | 1 1 1 . Scrap Searched . | . . . . Spaces Dug . | . . . . Terrain Destroyed . | . . . . Melee . | . . . . Projectile . | . . . . AOE . | . . . . Terrain Rammed . | . . . . Walls Destroyed . | . . . . Machines Disabled . | . . . . Actions | -11 -10 -10 -10 --------- Run | Yrd Mat Min Sub Total 1789 | 90 149 948 602 Wait 457 | . 2 436 19 Move 1232 | 68 129 465 570 Hop . | . . . . Pick Up 29 | 12 9 6 2 Fast Attach 1 | . . 1 . Attach 14 | 5 2 5 2 Detach 5 | . . 4 1 Swap 3 | . . 1 2 Drop 13 | 5 1 6 1 Fire 35 | . 6 24 5 Melee . | . . . . Ram . | . . . . Kick . | . . . . Crush . | . . . . Escape Stasis . | . . . . Rewire . | . . . . Trap . | . . . . Miscellaneous . | . . . . Route ------- -11/Scrapyard -10/Materials -10/Mines -10/Subcaves (discovered 1 exit: [*Mat]) History --------- Turn | Location | Event 3 | -11/Scrapyard | Discovered new exit (range 15) 77 | -11/Scrapyard | Entered Materials 147 | -10/Materials | Discovered new exit (range 14) 212 | -10/Materials | Entered Mines 221 | -10/Mines | Assisted by bots powering up and referring to "LRC-V3" 322 | -10/Mines | Assembled infested the area 328 | -10/Mines | Build established: Mutant 375 | -10/Mines | Lost 3 allies 751 | -10/Mines | Lost 3 parts (2n1u) 751 | -10/Mines | Joined a pair of Derelicts in attacking an 0b10 outpost 1078 | -10/Mines | Discovered new exit (range 3) 1079 | -10/Mines | Entered Subcaves 1111 | -10/Subcaves | Shifting Twisted Machinery released Riot Gun 1148 | -10/Subcaves | Shifting Twisted Machinery released Battle Rifle 1178 | -10/Subcaves | Core integrity fell below 50% 1206 | -10/Subcaves | Lost 4 parts (1p3n) 1212 | -10/Subcaves | Shifting Twisted Machinery released Barrage Gun 1260 | -10/Subcaves | Core integrity fell below 20% 1390 | -10/Subcaves | Discovered new exit (range 9) 1552 | -10/Subcaves | Destroyed by BT-FSX(R) with Subdweller Laser Last Messages --------------- Barrage Gun falls loose from the Twisted Machinery. Acquired 5 matter. Acquired 3 matter. System corrupted: Matter fused (-5). System corrupted: Heat flow error (+213). System corrupted: Component data lost. ELU2A9LRJF=PVQAFEUQP> System corrupted: Heat flow error (+235). System corrupted: Heat flow error (+145). EXIT=FOUND |Z RD&ZM=YRT3B/ U>ZGT= System corrupted: FCS attempts to trigger Riot Gun. System corrupted: Riot Gun misfires. System corrupted: Heat flow error (+138). 8UO1PIGM<1EVL8Z% %